bitfinex/quotes_BTCUSD_20220211
["timestamp","ask_amount","ask_price","bid_price","bid_amount"]
[1644571410928,0.057369,43607.0,43605.0,0.00070282]
[1644571411130,0.25084495,43617.0,43611.0,0.01]
[1644571411131,0.2184589,43617.0,43611.0,0.01]
[1644571411328,0.00025299,43612.0,43611.0,0.01]
[1644571411528,0.05,43616.0,43611.0,0.01]
[1644571411529,0.114734,43613.0,43611.0,0.01]
[1644571411727,0.214734,43613.0,43611.0,0.01]
[1644571411974,0.27680427,43612.0,43611.0,0.01]
[1644571412172,0.39730085,43612.0,43611.0,0.01]
[1644571417828,0.72495695,43612.0,43611.0,0.01]
[1644571418026,0.39730085,43612.0,43611.0,0.01]
[1644571418226,0.70494412,43612.0,43611.0,0.01]
[1644571418828,0.90084412,43612.0,43611.0,0.01]
[1644571419027,0.80084412,43612.0,43611.0,0.01]
[1644571419476,0.90084412,43612.0,43611.0,0.01]
[1644571420279,0.75084412,43612.0,43611.0,0.01]
[1644571420778,0.80084412,43612.0,43611.0,0.01]
[1644571421781,0.80069474,43612.0,43611.0,0.01]
[1644571422385,0.49305147,43612.0,43611.0,0.01]
[1644571423228,0.44305147,43612.0,43611.0,0.01]
[1644571424225,0.49305147,43612.0,43611.0,0.01]
[1644571425325,0.59305147,43612.0,43611.0,0.01]
[1644571426126,0.87798256,43612.0,43611.0,0.01]
[1644571426327,0.88002188,43612.0,43611.0,0.01]
[1644571426525,0.78002188,43612.0,43611.0,0.01]
[1644571426726,0.78002188,43612.0,43601.0,0.01]
[1644571426997,0.05,43602.0,43601.0,0.01]
[1644571427192,0.21141717,43596.0,43584.0,0.07571439]
[1644571427393,0.06909178,43589.0,43584.0,0.07571439]
[1644571427596,0.0459,43595.0,43584.0,0.07571439]
[1644571427793,0.30611502,43590.0,43584.0,0.07571439]
[1644571427993,0.39445292,43590.0,43583.0,0.6186793]
[1644571428196,0.05,43590.0,43583.0,0.38243433]
[1644571428395,0.05,43590.0,43585.0,0.05739897]
[1644571428692,0.42124155,43595.0,43585.0,0.05739897]
[1644571428693,0.52124155,43595.0,43585.0,0.05739897]
[1644571428893,0.057399,43591.0,43585.0,0.05739897]
[1644571429092,0.057401,43590.0,43585.0,0.05739897]
[1644571429293,0.057401,43590.0,43583.0,0.62695667]
[1644571429493,0.057401,43590.0,43587.0,0.00070083]
[1644571430495,0.057401,43590.0,43583.0,0.2676401]
[1644571430727,0.057401,43590.0,43587.0,0.00070083]
[1644571431123,0.107401,43590.0,43587.0,0.00070083]
[1644571431324,0.057401,43590.0,43587.0,0.00070083]
[1644571431723,0.057401,43590.0,43584.0,0.43011176]
[1644571431923,0.057401,43590.0,43587.0,0.00070083]
[1644571432925,0.057401,43590.0,43586.0,0.11479222]
[1644571433125,0.057401,43590.0,43587.0,0.00070083]
[1644571434127,0.057401,43590.0,43584.0,0.37271376]
[1644571434469,0.057401,43590.0,43587.0,0.00070083]
[1644571435275,0.057401,43590.0,43583.0,0.2676401]
[1644571435672,0.05703234,43590.0,43587.0,0.00070083]
[1644571436572,0.05703234,43590.0,43585.0,0.36417429]
[1644571436772,0.05703234,43590.0,43587.0,0.00070083]
[1644571437173,0.10703234,43590.0,43587.0,0.00070083]
[1644571438624,0.10703234,43590.0,43589.0,0.00107451]
[1644571441630,0.057399,43591.0,43589.0,0.32319651]
[1644571441833,0.71919989,43611.0,43590.0,0.05]
[1644571441834,0.22957,43609.0,43590.0,0.05]
[1644571442075,0.68808,43608.0,43595.0,0.057382]
[1644571442275,0.68808,43608.0,43603.0,0.34432692]
[1644571442677,0.68808,43608.0,43592.0,0.05]
[1644571442678,0.68808,43608.0,43597.0,0.11474324]
[1644571442877,0.68796973,43608.0,43599.0,0.00070076]
[1644571443088,0.057382,43605.0,43603.0,0.34379867]
[1644571443385,0.057382,43605.0,43603.0,0.32081867]
[1644571443580,0.114754,43605.0,43603.0,0.32081867]
[1644571443778,0.114754,43605.0,43603.0,0.6565532]
[1644571444377,0.164754,43605.0,43603.0,0.6565532]
[1644571444580,0.05,43604.0,43603.0,0.6565532]
[1644571444779,0.05,43604.0,43602.0,0.05807575]
[1644571444980,0.057377,43603.0,43595.0,0.11475468]
[1644571445180,0.19686766,43602.0,43601.0,0.00070075]
[1644571445580,0.24686766,43602.0,43601.0,0.00070075]
[1644571446234,0.114756,43601.0,43598.0,0.29484534]
[1644571446433,0.114756,43601.0,43599.0,0.00070076]
[1644571447033,0.114756,43601.0,43599.0,0.05807876]
[1644571447433,0.114756,43601.0,43599.0,0.057378]
[1644571449581,0.114756,43601.0,43598.0,0.29554611]
[1644571449582,0.057384,43600.0,43598.0,0.29554611]
[1644571449779,0.057384,43600.0,43598.0,0.29484534]
[1644571449977,0.057384,43600.0,43598.0,0.29554611]
[1644571450179,0.05,43599.0,43598.0,0.29554611]
[1644571450380,0.057384,43600.0,43598.0,0.29554611]
[1644571450580,0.057384,43600.0,43598.0,0.35292511]
[1644571450981,0.057384,43600.0,43598.0,0.35222434]
[1644571451480,0.05710788,43600.0,43598.0,0.057379]
[1644571451683,0.05710788,43600.0,43597.0,0.00070078]
[1644571451684,0.057388,43598.0,43597.0,0.00070078]
[1644571451883,0.42063372,43598.0,43597.0,0.00070078]
[1644571452081,0.42063372,43598.0,43589.0,0.00107451]
[1644571452082,1.15121545,43598.0,43589.0,0.00107451]
[1644571452280,0.05,43590.0,43579.0,0.37887451]
[1644571452480,0.28168947,43588.0,43581.0,0.63052526]
[1644571452680,0.0459,43587.0,43581.0,0.63052526]
[1644571453079,0.0459,43587.0,43579.0,0.37887451]
[1644571453330,0.103301,43587.0,43579.0,0.37887451]
[1644571453730,0.057401,43586.0,43579.0,0.37887451]
[1644571453929,0.33412277,43585.0,43579.0,0.37887451]
[1644571454131,0.38412277,43585.0,43579.0,0.26456388]
[1644571454332,0.057404,43584.0,43575.0,0.05760673]
[1644571454530,0.057404,43584.0,43575.0,0.057401]
[1644571454531,0.103304,43584.0,43575.0,0.057401]
[1644571454730,0.103304,43584.0,43575.0,0.05760673]
[1644571455131,0.057402,43583.0,43575.0,0.05760673]
[1644571455331,0.114799,43583.0,43580.0,0.28088495]
[1644571455533,0.114799,43583.0,43575.0,0.00020573]
[1644571455732,0.114799,43583.0,43574.0,0.12593872]
[1644571456035,0.057402,43583.0,43579.0,0.00070088]
[1644571456431,0.0574,43581.0,43579.0,0.00070088]
[1644571456633,0.114802,43581.0,43579.0,0.00070088]
[1644571457082,0.164802,43581.0,43574.0,0.07593872]
[1644571457291,0.107402,43581.0,43578.0,0.00070088]
[1644571457484,0.057404,43579.0,43578.0,0.00070088]
[1644571457683,0.0459,43584.0,43578.0,0.00070088]
[1644571457884,0.0959,43584.0,43579.0,0.33644369]
[1644571458086,0.0459,43584.0,43579.0,0.33644369]
[1644571458284,0.05,43586.0,43579.0,0.33644369]
[1644571458484,0.05,43586.0,43579.0,0.33714457]
[1644571458686,0.057402,43581.0,43579.0,0.00070088]
[1644571459485,0.057402,43581.0,43573.0,0.00020573]
[1644571459685,0.057404,43580.0,43578.0,0.00070088]
[1644571460735,0.0574,43579.0,43577.0,0.00070089]
[1644571461331,0.0574,43579.0,43577.0,0.32282289]
[1644571461527,0.0574,43579.0,43577.0,0.00070089]
[1644571461726,0.0574,43579.0,43577.0,0.33866826]
[1644571463528,0.0574,43579.0,43576.0,0.00024326]
[1644571463932,0.057403,43578.0,43576.0,0.00024326]
[1644571464128,0.057403,43578.0,43573.0,0.00020573]
[1644571464330,0.057403,43578.0,43575.0,0.00070141]
[1644571464586,0.057403,43578.0,43576.0,0.66410516]
[1644571464781,0.0574,43579.0,43577.0,0.322122]
[1644571464981,0.057403,43578.0,43576.0,0.36688068]
[1644571465383,0.057403,43578.0,43573.0,0.00020573]
[1644571465582,0.057403,43578.0,43575.0,0.00070141]
[1644571465982,0.057403,43578.0,43575.0,0.2848775]
[1644571466587,0.057403,43578.0,43575.0,0.28417609]
[1644571466785,0.057403,43578.0,43574.0,0.00070141]
[1644571467785,0.057403,43578.0,43573.0,0.00020573]
[1644571467985,0.057403,43578.0,43572.0,0.2691]
[1644571467986,0.057403,43578.0,43574.0,0.67069324]
[1644571468931,0.057403,43578.0,43574.0,0.66999182]
[1644571469334,0.057403,43578.0,43574.0,0.67069324]
[1644571470132,0.057403,43578.0,43574.0,0.66999182]
[1644571470333,0.057403,43578.0,43574.0,0.67069324]
[1644571470933,0.057403,43578.0,43575.0,0.322122]
[1644571471133,0.0574,43579.0,43575.0,0.322122]
[1644571471334,0.0574,43579.0,43574.0,0.7280952]
[1644571471533,0.0574,43579.0,43574.0,0.72739378]
[1644571471736,0.0574,43579.0,43575.0,0.322122]
[1644571472183,0.0574,43579.0,43574.0,0.45776145]
[1644571472683,0.114803,43579.0,43574.0,0.39965711]
[1644571472883,0.114803,43579.0,43574.0,0.40035852]
[1644571472884,0.0574,43579.0,43574.0,0.40035852]
[1644571473083,0.0574,43579.0,43574.0,0.72843062]
[1644571473884,0.0574,43579.0,43574.0,0.72772921]
[1644571474083,0.0574,43579.0,43574.0,0.72843062]
[1644571474285,0.057406,43578.0,43574.0,0.72843062]
[1644571474884,0.057406,43578.0,43574.0,0.40035852]
[1644571475183,0.172214,43578.0,43574.0,0.00070142]
[1644571475387,0.05,43577.0,43574.0,0.00070142]
[1644571475587,0.057421,43575.0,43574.0,0.00070142]
[1644571475831,0.107421,43575.0,43574.0,0.00070142]
[1644571476030,0.49913318,43575.0,43574.0,0.00070142]
[1644571476235,0.83346491,43575.0,43572.0,0.00020573]
[1644571476432,0.2519394,43574.0,43571.0,0.01]
[1644571476632,0.06636467,43572.0,43571.0,0.01]
[1644571476836,0.12378467,43572.0,43571.0,0.01]
[1644571477032,0.05742,43572.0,43571.0,0.01]
[1644571478437,0.13867334,43572.0,43571.0,0.01]
[1644571478641,0.13867334,43572.0,43555.0,0.8352]
[1644571478642,0.057426,43567.0,43555.0,0.05742587]
[1644571478842,0.114852,43568.0,43553.0,0.00021392]
[1644571478843,0.22716176,43555.0,43553.0,0.00021392]
[1644571479042,0.22716176,43555.0,43551.0,0.00021392]
[1644571479043,0.5459,43554.0,43551.0,0.00021392]
[1644571479238,0.0459,43554.0,43551.0,0.00021392]
[1644571479691,0.4,43552.0,43551.0,1e-08]
[1644571479890,0.4,43552.0,43550.0,0.0001]
[1644571479891,0.0002139,43551.0,43550.0,0.0001]
[1644571480091,0.0461139,43551.0,43550.0,0.0001]
[1644571480691,0.0461139,43551.0,43541.0,0.01]
[1644571480692,0.41473496,43551.0,43541.0,0.01]
[1644571480893,0.3095352,43542.0,43541.0,0.01]
[1644571481093,0.71179636,43542.0,43541.0,0.01]
[1644571481492,0.76179636,43542.0,43541.0,0.01]
[1644571481996,1.07251522,43542.0,43541.0,0.01]
[1644571485033,1.07251522,43542.0,43541.0,0.0097861]
[1644571486635,1.1421923,43542.0,43541.0,0.0097861]
[1644571487580,0.59925482,43542.0,43541.0,0.0097861]
[1644571487983,0.59738163,43542.0,43541.0,0.0097861]
[1644571488383,0.71232333,43542.0,43541.0,0.0097861]
[1644571488581,0.06934897,43539.0,43531.0,0.2628549]
[1644571488781,0.05747,43537.0,43533.0,0.00271259]
[1644571489581,0.05747,43537.0,43531.0,0.2628549]
[1644571489783,0.114939,43537.0,43533.0,0.00067808]
[1644571490179,0.214939,43537.0,43533.0,0.00067808]
[1644571490837,0.214939,43537.0,43511.0,0.970937]
[1644571490838,0.20641485,43523.0,43511.0,0.970937]
[1644571491034,0.20641485,43523.0,43511.0,0.9528]
[1644571491235,0.20641485,43523.0,43511.0,0.4528]
[1644571491236,0.25641485,43523.0,43511.0,0.4528]
[1644571491431,0.05,43523.0,43511.0,0.4528]
[1644571491832,0.12547621,43525.0,43519.0,0.28200484]
[1644571491833,0.31297511,43522.0,43519.0,0.28200484]
[1644571492031,0.31297511,43522.0,43511.0,0.4528]
[1644571492232,0.36297511,43522.0,43520.0,0.00023821]
[1644571492435,0.66177605,43522.0,43520.0,0.00023821]
[1644571493230,0.66177605,43522.0,43511.0,0.4528]
[1644571493231,0.95858336,43522.0,43511.0,0.4528]
[1644571493431,0.95858336,43522.0,43519.0,0.00023821]
[1644571493932,0.95858336,43522.0,43519.0,0.00045443]
[1644571494132,0.95829514,43522.0,43519.0,0.00023821]
[1644571494331,0.7669762,43522.0,43519.0,0.00045443]
[1644571494580,0.7669762,43522.0,43519.0,0.00069736]
[1644571494879,0.7669762,43522.0,43519.0,0.00091358]
[1644571495380,1.01376487,43522.0,43519.0,0.00091358]
[1644571495581,1.01376487,43522.0,43519.0,0.00021622]
[1644571495780,1.01376487,43522.0,43519.0,0.00069736]
[1644571495981,1.01376487,43522.0,43519.0,0.00091358]
[1644571496181,0.28847038,43521.0,43519.0,0.00091358]
[1644571496382,0.36071519,43520.0,43519.0,0.00069736]
[1644571496581,0.46071519,43520.0,43519.0,0.00069736]
[1644571496780,0.46071519,43520.0,43514.0,0.00021622]
[1644571496983,0.057486,43518.0,43517.0,0.00069737]
[1644571497983,0.057486,43518.0,43513.0,0.00021622]
[1644571498240,0.057486,43518.0,43515.0,0.00069738]
[1644571498241,0.107486,43518.0,43515.0,0.00069738]
[1644571498738,0.057485,43517.0,43515.0,0.00069738]
[1644571498940,0.27946115,43516.0,43515.0,0.00069738]
[1644571499135,0.057485,43517.0,43515.0,0.00069738]
[1644571499339,0.057485,43517.0,43512.0,0.00021622]
[1644571499536,0.114979,43516.0,43514.0,0.00069739]
[1644571499936,0.11498,43516.0,43514.0,0.29288739]
[1644571500539,0.05748385,43530.0,43515.0,0.372122]
[1644571500739,3.1831652,43541.0,43515.0,0.372122]
[1644571500740,3.1831652,43541.0,43521.0,0.05]
[1644571500938,0.00026676,43537.0,43525.0,0.05]
[1644571501140,0.057461,43532.0,43522.0,0.0459]
[1644571501339,0.057461,43532.0,43527.0,0.27221078]
[1644571502183,0.057461,43532.0,43527.0,0.272427]
[1644571502584,0.00026676,43537.0,43528.0,0.322122]
[1644571502790,0.00026676,43537.0,43529.0,0.322122]
[1644571502985,0.00026676,43537.0,43529.0,0.36823822]
[1644571503187,0.00026676,43537.0,43530.0,0.322122]
[1644571503391,0.00026676,43537.0,43534.0,0.05]
[1644571503586,0.00026676,43537.0,43536.0,0.05]
[1644571503785,0.00026676,43537.0,43536.0,0.372122]
[1644571504185,0.00026676,43537.0,43536.0,0.368022]
[1644571504487,0.23026676,43537.0,43536.0,0.368022]
[1644571504886,0.23026676,43537.0,43536.0,0.71854166]
[1644571505744,0.23026676,43537.0,43536.0,0.368022]
[1644571505934,0.23026676,43537.0,43536.0,0.0459]
[1644571505935,0.30851192,43537.0,43536.0,0.0459]
[1644571506535,0.057462,43536.0,43530.0,0.0459]
[1644571506736,0.05772876,43536.0,43532.0,0.29458723]
[1644571507035,0.11519076,43536.0,43530.0,0.0459]
[1644571507235,0.11519076,43536.0,43531.0,0.00021622]
[1644571507435,0.11519076,43536.0,43530.0,0.0459]
[1644571507737,0.33151612,43534.0,43530.0,0.0459]
[1644571507938,0.33178288,43534.0,43530.0,0.31132014]
[1644571508134,0.05773276,43534.0,43530.0,0.31132014]
[1644571508538,0.00026676,43534.0,43531.0,0.322122]
[1644571508936,0.0001493,43534.0,43532.0,0.05]
[1644571509235,0.0001493,43534.0,43533.0,0.322122]
[1644571510280,0.0001493,43534.0,43533.0,0.372122]
[1644571510779,0.0001493,43534.0,43533.0,0.322122]
[1644571510982,0.0001493,43534.0,43533.0,0.372122]
[1644571511982,0.0001493,43534.0,43533.0,0.322122]
[1644571512582,0.0001493,43534.0,43533.0,0.368022]
[1644571517691,0.23146572,43568.0,43534.0,0.05745356]
[1644571517892,0.03902486,43544.0,43534.0,0.10335356]
[1644571518090,0.38326662,43549.0,43534.0,0.10335356]
[1644571518295,0.057454,43549.0,43534.0,0.10335356]
[1644571518690,0.22364869,43546.0,43538.0,0.33560042]
[1644571518891,0.114911,43541.0,43538.0,0.33560042]
[1644571519189,0.172367,43541.0,43538.0,0.00021622]
[1644571519389,0.172367,43541.0,43537.0,0.33454525]
[1644571519390,0.172367,43541.0,43537.0,0.33476147]
[1644571519589,0.172367,43541.0,43537.0,0.33454525]
[1644571520836,0.114911,43541.0,43537.0,0.33454525]
[1644571522531,0.344911,43541.0,43537.0,0.33454525]
[1644571523731,0.402367,43541.0,43536.0,0.00021622]
[1644571523931,0.402367,43541.0,43535.0,0.37609351]
[1644571524331,0.344911,43541.0,43535.0,0.43354719]
[1644571524583,0.344911,43541.0,43535.0,0.37587729]
[1644571524783,0.402367,43541.0,43535.0,0.37587729]
[1644571524983,0.402367,43541.0,43537.0,0.29264055]
[1644571526485,0.344911,43541.0,43537.0,0.29264055]
[1644571526687,0.344911,43541.0,43536.0,0.00021622]
[1644571526886,0.344911,43541.0,43535.0,0.43333082]
[1644571527784,0.057456,43540.0,43536.0,0.34807969]
[1644571527988,0.114912,43540.0,43536.0,0.34829591]
[1644571528246,0.114912,43540.0,43536.0,0.34807969]
[1644571528644,0.0570097,43540.0,43536.0,0.34807969]
[1644571529241,0.0570097,43540.0,43537.0,0.322122]
[1644571530743,0.0570097,43540.0,43536.0,0.34829591]
[1644571530944,0.0570097,43540.0,43537.0,0.322122]
[1644571531145,0.0570097,43540.0,43536.0,0.34829591]
[1644571531343,0.0570097,43540.0,43537.0,0.322122]
[1644571531545,0.0570097,43540.0,43536.0,0.34807969]
[1644571532384,0.1144647,43540.0,43536.0,0.34807969]
[1644571532784,0.1144647,43540.0,43535.0,0.05766981]
[1644571532985,0.0570097,43540.0,43534.0,0.05745618]
[1644571533586,0.057457,43539.0,43532.0,0.00021622]
[1644571533787,0.057454,43538.0,43532.0,0.322122]
[1644571533984,0.057454,43538.0,43534.0,0.33084408]
[1644571534183,0.057454,43538.0,43535.0,0.322122]
[1644571534583,0.057454,43538.0,43536.0,0.33648371]
[1644571536338,0.057454,43538.0,43535.0,0.05745363]
[1644571537237,0.057454,43538.0,43535.0,0.38619218]
[1644571537839,0.057454,43538.0,43534.0,0.05767247]
[1644571538038,0.057454,43538.0,43533.0,0.00021622]
[1644571538240,0.057454,43538.0,43531.0,0.00065534]
[1644571538440,0.057454,43538.0,43531.0,0.00087156]
[1644571538639,0.057454,43538.0,43531.0,0.00065534]
[1644571538843,0.33073315,43538.0,43531.0,0.00065534]
[1644571539039,0.33073315,43538.0,43531.0,0.00021622]
[1644571539240,0.38819415,43538.0,43531.0,0.00023812]
[1644571539489,0.057464,43535.0,43531.0,0.00045434]
[1644571539686,0.057464,43535.0,43531.0,0.00023812]
[1644571540088,0.2557653,43532.0,43531.0,0.00023812]
[1644571540293,0.2557653,43532.0,43527.0,0.00021622]
[1644571540495,0.2557653,43532.0,43526.0,0.00021622]
[1644571540496,0.05,43528.0,43526.0,0.00021622]
[1644571540691,0.06416786,43529.0,43522.0,0.00021622]
[1644571540889,0.06416786,43529.0,43520.0,0.00262187]
[1644571540890,0.2106932,43524.0,43520.0,0.00262187]
[1644571541089,0.39315248,43521.0,43520.0,0.00262187]
[1644571541492,0.44315248,43521.0,43514.0,0.35460115]
[1644571541691,0.057485,43518.0,43514.0,0.35460115]
[1644571542290,0.55812148,43521.0,43514.0,0.35460115]
[1644571542291,0.164969,43521.0,43514.0,0.35460115]
[1644571542693,0.057483,43519.0,43514.0,0.35460115]
[1644571542892,0.057483,43519.0,43512.0,0.00021622]
[1644571543093,0.057483,43519.0,43511.0,0.01021622]
[1644571543094,0.057484,43517.0,43511.0,0.01021622]
[1644571543340,0.057484,43517.0,43511.0,0.01]
[1644571543939,0.057484,43517.0,43515.0,0.34618221]
[1644571544145,0.107484,43517.0,43515.0,0.34618221]
[1644571544341,0.107484,43517.0,43512.0,0.00088391]
[1644571544342,0.107484,43517.0,43513.0,0.00021622]
[1644571544540,0.107484,43517.0,43512.0,0.00088391]
[1644571544939,0.107484,43517.0,43512.0,0.05836494]
[1644571545141,0.107484,43517.0,43512.0,0.05769725]
[1644571545344,0.107484,43517.0,43512.0,0.32326401]
[1644571545842,0.337484,43517.0,43512.0,0.0008839]
[1644571546341,0.337484,43517.0,43512.0,0.00021622]
[1644571546543,0.337484,43517.0,43512.0,0.00066768]
[1644571546744,0.337484,43517.0,43514.0,0.30992584]
[1644571547586,0.14648167,43518.0,43514.0,0.61852966]
[1644571547786,0.05,43517.0,43514.0,0.61852966]
[1644571547986,0.05,43517.0,43513.0,0.00086746]
[1644571548187,0.20209363,43515.0,43513.0,0.00065124]
[1644571548390,0.28828612,43514.0,43513.0,0.00065124]
[1644571548787,0.28828612,43514.0,43512.0,0.00065124]
[1644571549187,0.39578012,43514.0,43512.0,0.00065124]
[1644571549391,0.30118791,43513.0,43512.0,0.00065124]
[1644571549989,0.30118791,43513.0,43511.0,0.01]
[1644571550489,0.057494,43513.0,43511.0,0.01]
[1644571551335,0.08388283,43512.0,43511.0,0.01]
[1644571551538,0.35883186,43512.0,43511.0,0.01]
[1644571551836,0.13388283,43512.0,43511.0,0.01]
[1644571552046,0.25637483,43512.0,43511.0,0.01]
[1644571552635,0.37136983,43512.0,43511.0,0.01]
[1644571553239,0.6939403,43512.0,43511.0,0.01]
[1644571553440,0.6939403,43512.0,43503.0,0.00261489]
[1644571553441,0.9,43511.0,43503.0,0.00261489]
[1644571553644,0.9,43511.0,43501.0,0.01]
[1644571553645,0.2,43502.0,43501.0,0.01]
[1644571553840,0.56099143,43502.0,43501.0,0.01]
[1644571554039,0.36662088,43502.0,43491.0,0.01]
[1644571554339,0.36593459,43501.0,43491.0,0.01]
[1644571554905,0.51183459,43501.0,43491.0,0.01]
[1644571555305,0.057526,43499.0,43491.0,0.01]
[1644571555505,0.115051,43501.0,43497.0,0.35273169]
[1644571555707,0.057526,43500.0,43497.0,0.35273169]
[1644571555906,0.057526,43500.0,43492.0,0.15]
[1644571556104,0.057526,43500.0,43497.0,0.00065151]
[1644571556906,0.057513,43499.0,43497.0,0.00065151]
[1644571557110,0.057513,43499.0,43491.0,0.01]
[1644571557111,0.46570695,43498.0,43491.0,0.01]
[1644571557306,0.24934278,43495.0,43491.0,0.01]
[1644571557608,0.07289268,43494.0,43491.0,0.01]
[1644571557906,0.44339575,43493.0,43491.0,0.01]
[1644571558343,0.05752,43493.0,43491.0,0.01]
[1644571559345,0.05752,43493.0,43491.0,0.005]
[1644571559750,0.37524817,43492.0,43491.0,0.005]
[1644571561747,0.47524817,43492.0,43491.0,0.005]
[1644571562704,0.75715366,43492.0,43491.0,0.005]
[1644571562904,0.957528,43491.0,43489.0,9.98e-06]
[1644571563111,0.9,43489.0,43481.0,0.00760032]
[1644571563307,0.48288619,43482.0,43481.0,0.00760032]
[1644571563505,0.53288619,43482.0,43481.0,0.00760032]
[1644571563703,0.38288619,43482.0,43481.0,0.00760032]
[1644571563903,1.07126097,43482.0,43481.0,0.00760032]
[1644571564506,0.59012393,43482.0,43481.0,0.00760032]
[1644571564708,0.057538,43482.0,43481.0,0.00760032]
[1644571564907,0.103443,43483.0,43481.0,0.00760032]
[1644571565609,0.057543,43483.0,43481.0,0.00760032]
[1644571565844,0.07848357,43482.0,43481.0,0.00760032]
[1644571566044,0.36206385,43482.0,43481.0,0.00760032]
[1644571566247,0.41206385,43482.0,43481.0,0.00760032]
[1644571566443,0.12848357,43482.0,43481.0,0.00760032]
[1644571566644,0.07848357,43482.0,43481.0,0.00760032]
[1644571567445,0.30848357,43482.0,43481.0,0.00760032]
[1644571567644,0.58432609,43482.0,43481.0,0.00760032]
[1644571568247,0.78432609,43482.0,43481.0,0.00760032]
[1644571568647,1.08022609,43482.0,43481.0,0.00760032]
[1644571568848,1.04171107,43482.0,43481.0,0.00760032]
[1644571569046,0.84171107,43482.0,43481.0,0.00760032]
[1644571569249,0.55438357,43482.0,43481.0,0.00760032]
[1644571569484,0.87936637,43482.0,43481.0,0.00760032]
[1644571569684,1.15946728,43481.0,43480.0,0.0013432]
[1644571569886,1.15946728,43481.0,43473.0,0.00021724]
[1644571569887,0.2,43474.0,43473.0,0.00021724]
[1644571570088,0.2,43474.0,43471.0,0.01090016]
[1644571570089,0.31887924,43473.0,43472.0,0.00021724]
[1644571570284,0.51887924,43473.0,43471.0,0.0111174]
[1644571570488,0.88258353,43473.0,43471.0,0.01090016]
[1644571571191,0.28617258,43514.0,43474.0,0.9]
[1644571571406,0.89700758,43532.0,43474.0,0.9]
[1644571571407,0.68975,43513.0,43502.0,0.9]
[1644571571692,0.48907486,43544.0,43502.0,0.9]
[1644571571693,0.13498114,43551.0,43523.0,0.15]
[1644571571888,0.13498114,43551.0,43513.0,0.57625]
[1644571571889,0.14658856,43543.0,43535.0,0.05]
[1644571572089,0.13498114,43551.0,43539.0,0.15]
[1644571572090,0.001,43547.0,43539.0,0.15]
[1644571572288,0.001,43547.0,43536.0,0.34748404]
[1644571572289,0.001,43547.0,43546.0,0.04]
[1644571572487,0.001,43551.0,43547.0,0.15]
[1644571572689,6.20853607,43550.0,43548.0,0.057428]
[1644571572888,6.20853607,43550.0,43549.0,0.039]
[1644571572889,6.20153607,43550.0,43549.0,0.039]
[1644571573091,6.19953607,43550.0,43549.0,0.0849]
[1644571573338,5.84600069,43550.0,43549.0,0.0849]
[1644571573540,5.84500069,43550.0,43549.0,2.853129]
[1644571573741,5.50041195,43550.0,43549.0,3.427129]
[1644571573941,5.50041195,43550.0,43549.0,2.99035247]
[1644571574140,5.69986893,43550.0,43549.0,2.82302347]
[1644571574345,5.69986893,43550.0,43547.0,0.17227627]
[1644571574346,6.33073355,43550.0,43547.0,0.17227627]
[1644571574540,6.33073355,43550.0,43549.0,0.18314545]
[1644571574740,6.33073355,43550.0,43546.0,0.05743814]
[1644571574741,1.03930997,43549.0,43546.0,0.05743814]
[1644571574942,0.2607899,43537.0,43535.0,0.22975268]
[1644571575244,0.32815604,43537.0,43523.0,0.459]
[1644571575441,0.011,43540.0,43525.0,0.05747649]
[1644571575442,0.07611464,43527.0,43525.0,0.05747649]
[1644571575645,0.07611464,43527.0,43526.0,0.322122]
[1644571575840,0.07611464,43527.0,43525.0,0.05747649]
[1644571576041,0.07611464,43527.0,43524.0,0.467]
[1644571576847,0.27957943,43526.0,43524.0,0.467]
[1644571577294,0.27957943,43526.0,43516.0,0.441]
[1644571577295,0.32419537,43518.0,43516.0,0.441]
[1644571577493,0.08155255,43512.0,43510.0,0.539]
[1644571577696,0.32419537,43518.0,43511.0,0.322122]
[1644571577894,0.32419537,43518.0,43510.0,0.539]
[1644571577895,0.06791183,43514.0,43513.0,0.039]
[1644571578095,0.55419537,43518.0,43510.0,0.5]
[1644571578299,0.55419537,43518.0,43508.0,0.00021724]
[1644571578497,0.55419537,43518.0,43510.0,0.039]
[1644571578696,0.55419537,43518.0,43508.0,0.00021724]
[1644571578996,0.55419537,43518.0,43510.0,0.039]
[1644571579196,0.06815331,43517.0,43508.0,0.00021724]
[1644571579396,0.00069189,43516.0,43514.0,0.039]
[1644571579599,0.00069189,43516.0,43515.0,0.322122]
[1644571580301,0.23,43518.0,43515.0,0.322122]
[1644571580500,0.22769188,43518.0,43515.0,0.322122]
[1644571580754,0.22769188,43518.0,43517.0,0.089]
[1644571581049,0.22769188,43518.0,43517.0,0.411122]
[1644571581342,0.227,43518.0,43517.0,0.461122]
[1644571581642,0.22634579,43518.0,43517.0,0.461122]
[1644571582043,0.22634579,43518.0,43517.0,0.361122]
[1644571582245,0.22634579,43518.0,43507.0,0.00021724]
[1644571582445,0.24882145,43517.0,43510.0,0.5]
[1644571582652,0.24882145,43517.0,43505.0,0.00021724]
[1644571582653,0.13930997,43513.0,43505.0,0.00021724]
[1644571582842,0.011,43515.0,43501.0,0.01]
[1644571582843,0.26327402,43506.0,43502.0,0.00021724]
[1644571583042,0.51928886,43505.0,43501.0,0.01021724]
[1644571583647,0.51928886,43505.0,43501.0,0.01]
[1644571583843,0.51928886,43505.0,43501.0,0.01021724]
[1644571584243,0.51996529,43505.0,43501.0,0.01021724]
[1644571585196,0.12379532,43505.0,43501.0,0.01021724]
[1644571585398,0.12379532,43505.0,43502.0,0.322122]
[1644571585399,0.00065412,43505.0,43502.0,0.322122]
[1644571585597,0.00065412,43505.0,43504.0,0.039]
[1644571585800,0.00065412,43505.0,43504.0,0.73452471]
[1644571585998,0.13930997,43527.0,43504.0,0.73452471]
[1644571586199,0.31946658,43516.0,43505.0,0.0459]
[1644571586398,0.65106424,43516.0,43511.0,0.039]
[1644571586597,0.77442626,43512.0,43511.0,0.039]
[1644571586997,0.77442626,43512.0,43511.0,0.03894]
[1644571587998,0.76365677,43512.0,43511.0,0.03894]
[1644571588941,0.67874051,43512.0,43511.0,0.03894]
[1644571589342,0.90874051,43512.0,43511.0,0.03894]
[1644571589542,0.89675464,43512.0,43511.0,0.03894]
[1644571589944,0.89675464,43512.0,43511.0,0.71678275]